Cogmind - Beta 11.1 @@@ ROGUE MODE // 2022.12.07 @ 21:29:43 Player: omewwes Result: Destroyed by G-67 Veteran with Field Laser Performance ------------- Evolutions (6) 3000 Regions Visited (18) 3600 Robots Destroyed (286) 1430 Value Destroyed (11849) 11849 Prototype IDs (24) 480 Alien Tech Used (2) 400 Bonus (5195) 5195 TOTAL SCORE: 25954 Bonus ------- Triggered High Security 500 High Alert Combat Kills 2863 Follower Combat Kills 1449 Network Hubs Disabled 200 Met Zhirov 300 Built Enhanced Grunts 300 Friendly Fire -417 Cogmind --------- Core Integrity 0/1150 Matter 246/300 Energy 100/100 System Corruption 4% Temperature Cool (21) Movement Core (50) Location -4/Factory Parts ------- > --- POWER (2) -------- (None) > --- PROPULSION (4) --- (None) > --- UTILITY (8) ------ (None) > --- WEAPON (5) ------- (None) > --- INVENTORY (5) ---- Light Antimatter Reactor Improved Heavy Treads Advanced Signal Interpreter Improved Weapon Cycler Peak State ------------ > --- POWER ------------ Light Antimatter Reactor Light Antimatter Reactor > --- PROPULSION ------- Improved Heavy Treads Improved Heavy Treads > --- UTILITY ---------- Huge Storage Unit Advanced Targeting Computer Armor Integrity Analyzer Improved Weapon Cycler Improved Phase Shifter Layered Heavy Armor Plating Graphene Brace > --- WEAPON ----------- Coil Gun Coil Gun Coil Gun KE Penetrator KE Penetrator > --- INVENTORY -------- Improved Heavy Treads Myomer Leg Wheel Compact Wheel Compact Wheel Advanced Heat Sink Matter Compressor Advanced Signal Interpreter Improved Targeting Computer Precision Matter Filter Improved Weapon Cycler Long-range Tractor Beam Transdimensional Reconstructor Coil Gun Coil Gun Coil Gun Coil Gun Coil Gun Coil Gun Micro-nuke Launcher Power Sword [Rating: 120] Favorites ----------- Power Neutrino Core Engine Improved Deuterium Engine Power Core Neutrino Core Reactor Light Antimatter Reactor Propulsion Light Treads Treads Light Treads Leg Myomer Leg Wheel Wheel Utility Advanced Targeting Computer Device Advanced Heat Sink Storage Large Storage Unit Processor Advanced Targeting Computer Hackware Improved Hacking Suite Protection Centrium Medium Armor Plating Weapon Flak Gun Energy Gun Precision Shock Rifle Energy Cannon Heavy Plasma Cannon Ballistic Gun Flak Gun Ballistic Cannon Magnetic Acceleration Cannon Launcher Rocket Array Impact Weapon Heavy Mace Slashing Weapon Power Sword Build | -11 -10 -10 -10 -9 -8 -7 -7 -6 -6 -6 -6 -6 -5 -5 -5 -5 -4 -4 ------- Run | Scr Mat Min Exi Min Mat Fac Sto Fac Ext Cet Arc Hub Fac Upp Upp Zhi Pro Fac Slots Evolved 12 | . . . . . 4 2 . 2 . . . . 2 . . . . 2 Power 1 | . . . . . . . . . . . . . . . . . . 1 Propulsion 2 | . . . . . . . . 2 . . . . . . . . . . Utility 6 | . . . . . 2 2 . . . . . . 2 . . . . . Weapon 3 | . . . . . 2 . . . . . . . . . . . . 1 Parts Attached 275 | 6 . 1 . . 13 36 12 19 44 8 5 8 18 2 6 6 5 86 Power 17 | 1 . . . . 1 1 1 . 3 . . . 1 1 . . . 8 Engine 5 | 1 . . . . 1 . 1 . 2 . . . . . . . . . Core 6 | . . . . . . 1 . . 1 . . . 1 1 . . . 2 Reactor 6 | . . . . . . . . . . . . . . . . . . 6 Propulsion 55 | 2 . . . . 2 3 2 5 11 . 2 5 3 . 1 . . 19 Treads 46 | 2 . . . . 2 3 2 5 8 . 2 5 3 . 1 . . 13 Leg 3 | . . . . . . . . . . . . . . . . . . 3 Wheel 6 | . . . . . . . . . 3 . . . . . . . . 3 Hover . | . . . . . . . . . . . . . . . . . . . Flight . | . . . . . . . . . . . . . . . . . . . Utility 114 | 1 . 1 . . 4 15 8 10 16 5 3 2 13 . 4 6 2 24 Device 53 | . . 1 . . . 7 4 5 7 1 1 . 8 . 3 1 1 14 Storage 7 | 1 . . . . . 2 1 . . . . . . . . . . 3 Processor 12 | . . . . . 2 2 1 1 . 1 1 . 2 . . 2 . . Hackware 5 | . . . . . . . . 1 . 1 . 2 . . . . . 1 Protection 37 | . . . . . 2 4 2 3 9 2 1 . 3 . 1 3 1 6 Artifact . | . . . . . . . . . . . . . . . . . . . Weapon 89 | 2 . . . . 6 17 1 4 14 3 . 1 1 1 1 . 3 35 Energy Gun 7 | . . . . . 2 3 . . 1 . . . . . . . . 1 Energy Cannon 1 | . . . . . . . . . 1 . . . . . . . . . Ballistic Gun 72 | 2 . . . . 4 13 1 4 9 1 . 1 1 1 1 . 2 32 Ballistic Cannon 2 | . . . . . . . . . 1 1 . . . . . . . . Launcher 1 | . . . . . . . . . . . . . . . . . 1 . Special Weapon . | . . . . . . . . . . . . . . . . . . . Impact Weapon 4 | . . . . . . 1 . . 2 1 . . . . . . . . Slashing Weapon 2 | . . . . . . . . . . . . . . . . . . 2 Piercing Weapon . | . . . . . . . . . . . . . . . . . . . Special Melee Weapon . | . . . . . . . . . . . . . . . . . . . Unidentified Prototypes 13 | . . . . . 1 2 . . 1 1 . 2 . . . 3 1 2 Corrupted Parts 2 | . . . . . . . . . . . . 2 . . . . . . System Corruption 10 | . . . . . . . . . . . . 10 . . . . . . Parts Lost 68 | . . . . . . 3 2 1 16 1 . . 1 . . . . 44 Power 7 | . . . . . . . . . 1 . . . . . . . . 6 Propulsion 16 | . . . . . . . . . 6 . . . . . . . . 10 Utility 20 | . . . . . . 2 2 1 3 . . . 1 . . . . 11 Weapon 25 | . . . . . . 1 . . 6 1 . . . . . . . 17 Highest Loss Streak 17 | . . . . . . 2 2 1 12 1 . . 1 . . . . 17 To Critical Strikes . | . . . . . . . . . . . . . . . . . . . Average Slot Usage (%) 94 | . 85 93 100 100 87 97 99 99 97 99 99 99 93 94 93 93 94 86 Engine 2 | . 14 14 14 14 9 1 2 6 5 . . . . . . . . . Core 3 | . . . . . . 5 4 . . 6 6 6 5 5 5 5 5 4 Treads 18 | . 28 28 28 28 18 15 15 25 20 26 26 25 17 17 17 17 17 14 Device 13 | . . 8 14 14 3 16 25 11 7 5 6 6 13 17 17 14 11 14 Storage 6 | . 14 14 14 14 9 8 7 6 6 6 6 6 5 5 5 5 5 4 Processor 8 | . . . . . 14 7 7 13 8 6 5 6 5 5 5 10 17 11 Protection 9 | . . . . . 3 8 2 7 15 18 20 10 11 17 16 14 11 5 Ballistic Gun 25 | . 28 28 28 28 28 27 30 26 23 23 26 26 23 23 22 23 22 24 Naked Turns 60 | . . . . . . . . . . . . . . . . . . 60 Heaviest Build 161 | 11 11 12 12 12 30 59 64 70 68 75 71 71 79 84 85 85 76 161 Greatest Support 150 | 40 40 40 40 40 40 40 40 80 80 80 86 126 131 131 138 138 138 150 Greatest Overweight (x) 13 | . . . . . . 1 1 1 5 . . 1 . . . . . 13 Average Overweight (x) . | . . . . . . . 1 . . . . . . . . . . . Largest Inventory Capacity 25 | 8 8 8 8 8 8 15 15 15 15 15 15 15 15 15 15 15 15 25 Average Capacity 15 | 6 8 8 8 8 8 11 15 15 15 15 15 15 15 15 15 15 15 21 Most Carried 24 | 1 1 3 4 5 8 15 15 15 15 15 15 15 15 15 15 15 15 24 Average Carried 12 | . 1 2 3 4 7 10 14 12 13 14 14 14 13 13 14 14 14 15 Final Capacity 15 | 8 8 8 8 8 8 15 15 15 15 15 15 15 15 15 15 15 15 5 Final Carried 15 | 1 1 3 4 5 8 14 15 14 15 15 15 13 13 14 14 15 15 5 Class Distribution -------------------- 53% | Scavenger-Gunner 23% | Scavenger-Tank 10% | Mutant 9% | Gunner Dominant Class ---------------- Mutant | -10/Materials Mutant | -10/Mines Mutant | -10/Exiles Mutant | -9/Mines Scavenger-Gunner | -8/Materials Gunner | -7/Factory Scavenger-Gunner | -7/Storage Scavenger-Gunner | -6/Factory Scavenger-Tank | -6/Extension Scavenger-Tank | -6/Cetus Scavenger-Tank | -6/Archives Scavenger-Gunner | -6/Hub_04(d) Scavenger-Tank | -5/Factory Scavenger-Gunner | -5/Upper Caves Scavenger-Gunner | -5/Upper Caves Scavenger-Gunner | -5/Zhirov Scavenger-Gunner | -4/Proximity Caves Scavenger-Gunner | -4/Factory Resources | -11 -10 -10 -10 -9 -8 -7 -7 -6 -6 -6 -6 -6 -5 -5 -5 -5 -4 -4 ----------- Run | Scr Mat Min Exi Min Mat Fac Sto Fac Ext Cet Arc Hub Fac Upp Upp Zhi Pro Fac Matter Collected 11790 | 211 . 59 . 36 535 909 827 821 2088 292 315 227 1091 309 422 . 247 3401 Remotely 3510 | . . . . . . 212 269 274 248 . 171 . 197 . 231 . 86 1822 Salvage Created 14885 | . . . . 42 497 1348 1360 619 2460 305 133 158 960 372 863 . 289 5479 Parts 719 | . . 2 . 6 33 65 60 33 117 9 9 7 41 19 33 . 17 268 Haulers Intercepted 12 | . . . . . 1 3 4 . 1 . . 1 1 . . . . 1 Recyclers Shooed 12 | . . . . 2 . 2 . . 4 . . 1 1 . . . . 2 Parts Field Recycled . | . . . . . . . . . . . . . . . . . . . Retrieved Matter . | . . . . . . . . . . . . . . . . . . . Parts Self-Destructed 68 | . . . . . . . . . . . . . . 17 34 . 17 . Prevented . | . . . . . . . . . . . . . . . . . . . Kills | -11 -10 -10 -10 -9 -8 -7 -7 -6 -6 -6 -6 -6 -5 -5 -5 -5 -4 -4 ------- Run | Scr Mat Min Exi Min Mat Fac Sto Fac Ext Cet Arc Hub Fac Upp Upp Zhi Pro Fac Combat Hostiles Destroyed 204 | . . . . 3 8 16 17 9 31 5 1 1 13 9 13 . 10 68 Guns 192 | . . . . 3 8 15 17 9 30 3 1 1 13 9 13 . 10 60 Cannons 3 | . . . . . . . . . 1 2 . . . . . . . . AOE 9 | . . . . . . 1 . . . . . . . . . . . 8 Classes Destroyed 21 | . . 1 . 1 7 1 3 1 6 . . . . . . . . 1 Worker 22 | . . . . . 1 2 2 . 2 . . . 1 . . . . 14 Builder 11 | . . 1 . . . 1 . . . . . . 1 . . . . 8 Tunneler 1 | . . . . . . . . . 1 . . . . . . . . . Hauler 12 | . . . . . 1 3 4 . 1 . . 1 1 . . . . 1 Recycler 21 | . . . . . 1 6 3 . 3 . . . 2 . . . . 6 Mechanic 1 | . . . . . . . . . 1 . . . . . . . . . Operator 7 | . . . . . . . 2 . 2 . 3 . . . . . . . Watcher 6 | . . . . . 2 . . . 1 . . . 1 . . . . 2 Swarmer 41 | . . . . 3 4 3 4 . 2 . . . 4 4 . . 8 9 Saboteur 2 | . . . . . . . . . . . . . . . . . . 2 Grunt 78 | . . . . . 2 7 9 7 13 3 . . 6 3 8 . . 20 Brawler 9 | . . . . . . . . . 2 . . . . . 2 . . 5 Duelist 7 | . . . . . . . 1 . 1 . . . . . 1 . . 4 Protector 3 | . . . . . . . 1 . 1 . . . . . . . . 1 Sentry 23 | . . . . . 1 2 2 . 5 . 1 1 3 1 2 . . 5 Demolisher 1 | . . . . . . . . . 1 . . . . . . . . . Specialist 4 | . . . . . . . . . 2 . . . . . . . . 2 Hunter 13 | . . . . . 1 . . . 1 . . . . 1 . . . 10 Programmer 18 | . . . . . . 4 . 1 1 . . . . . . . 2 10 Heavy 1 | . . . . . . . . 1 . . . . . . . . . . Behemoth 2 | . . . . . . . . . 2 . . . . . . . . . Cetus Guard 2 | . . . . . . . . . . 2 . . . . . . . . Butcher 1 | . . . . . . . . . 1 . . . . . . . . . Best Kill Streak 15 | . . 1 . 3 5 5 8 4 5 3 1 1 8 4 11 . 4 15 Combat Bots Only 14 | . . . . 3 5 4 8 4 5 3 1 1 7 4 11 . 4 14 Max Kills in Single Turn 6 | . . 1 . 1 2 3 3 2 2 1 1 1 2 2 2 . 2 6 Gunslinging 2 | . . . . . 1 . 2 . 1 . . . . 1 1 . 1 1 Exploded 5 | . . . . . . 1 . . . . . . . . . . . 5 Melee . | . . . . . . . . . . . . . . . . . . . Uniques/NPCs Destroyed . | . . . . . . . . . . . . . . . . . . . Combat | -11 -10 -10 -10 -9 -8 -7 -7 -6 -6 -6 -6 -6 -5 -5 -5 -5 -4 -4 -------- Run | Scr Mat Min Exi Min Mat Fac Sto Fac Ext Cet Arc Hub Fac Upp Upp Zhi Pro Fac Damage Taken 19398 | . . 27 . 32 306 938 991 929 2965 99 68 379 724 371 736 . 469 10364 Core 1794 | . . 15 . 8 26 119 92 16 221 10 . 11 71 18 50 . 21 1116 Absorbed by Shields 482 | . . . . . . 228 130 . 88 36 . . . . . . . . Reduced by Siege Mode 291 | . . . . . . . . . . . . . 4 . 5 . 5 277 Regen/Repaired (Parts) 470 | . . . . . . . . . 69 . 23 . 19 55 191 . 88 25 Core Remaining (%) 84 | 100 . . . 90 95 . 69 . . . . 69 . . . . 84 . Volleys Fired 521 | . . . . 10 37 50 33 23 99 11 18 10 36 15 24 . 13 142 Largest 5 | . . . . 2 4 4 4 4 4 4 4 4 4 4 4 . 4 5 Hottest 196 | . . . . 40 105 193 112 127 196 139 114 114 124 124 131 . 131 193 Shots Fired 2083 | . . . . 20 109 194 131 91 365 44 72 41 144 60 88 . 53 671 Gun 2064 | . . . . 20 109 194 131 91 355 35 72 41 144 60 88 . 53 671 Cannon 19 | . . . . . . . . . 10 9 . . . . . . . . Launcher . | . . . . . . . . . . . . . . . . . . . Special . | . . . . . . . . . . . . . . . . . . . Kinetic 2035 | . . . . 20 99 188 131 91 352 44 72 41 144 60 88 . 53 652 Thermal 42 | . . . . . 10 . . . 13 . . . . . . . . 19 Explosive . | . . . . . . . . . . . . . . . . . . . Electromagnetic 6 | . . . . . . 6 . . . . . . . . . . . . Robot Hit Streak 27 | . . . . 6 9 8 27 23 17 7 15 9 21 10 26 . 10 20 Robot Miss Streak 8 | . . . . 2 3 8 3 4 6 6 5 5 4 4 2 . 3 5 Penetration Max 3 | . . . . . . . . 3 3 1 1 1 1 1 1 . . 1 Secondary Targets 50 | . . . . . 2 2 6 2 10 . . . . 2 4 . 4 18 Max Gunslinging Chain 2 | . . . . . 1 1 2 1 1 . . . . 1 1 . 1 2 Shots Hit Robots 1430 | . . . . 14 67 117 87 69 282 32 51 34 102 45 69 . 32 429 Core Hits 850 | . . . . 5 27 71 44 40 188 37 39 33 83 25 28 . 12 218 Critical Kills 49 | . . . . . . 1 4 8 18 . . . 3 . 3 . . 12 Critical Parts Destroyed 70 | . . . . . . 1 3 10 36 . . . 2 1 4 . 1 12 Critical Strikes 130 | . . . . . . 3 7 18 61 . . . 6 1 7 . 1 26 Burn 3 | . . . . . . . . . 2 . . . . . . . . 1 Destroy 127 | . . . . . . 3 7 18 59 . . . 6 1 7 . 1 25 Melee Attacks 31 | . . . . . . 4 . . 19 3 . . . . . . . 5 Impact 26 | . . . . . . 4 . . 19 3 . . . . . . . . Slashing 5 | . . . . . . . . . . . . . . . . . . 5 Piercing . | . . . . . . . . . . . . . . . . . . . Sneak Attacks . | . . . . . . . . . . . . . . . . . . . Combat Hostiles . | . . . . . . . . . . . . . . . . . . . Follow-up Attacks . | . . . . . . . . . . . . . . . . . . . Damage Inflicted 33009 | . . 1 . 139 826 2223 1933 1010 4878 804 985 588 2537 900 2033 . 1021 13131 Guns 30728 | . . . . 139 826 2046 1933 1010 4673 615 985 588 2537 900 2033 . 1021 11422 Cannons 394 | . . . . . . . . . 205 189 . . . . . . . . Explosions 1877 | . . . . . . 177 . . . . . . . . . . . 1700 Melee . | . . . . . . . . . . . . . . . . . . . Ramming 10 | . . 1 . . . . . . . . . . . . . . . 9 Kinetic 30594 | . . . . 139 743 1964 1933 1010 4752 804 985 588 2537 900 2033 . 1021 11185 Thermal 1383 | . . . . . 83 94 . . 126 . . . . . . . . 1080 Explosive 857 | . . . . . . . . . . . . . . . . . . 857 Electromagnetic 165 | . . . . . . 165 . . . . . . . . . . . . Impact . | . . . . . . . . . . . . . . . . . . . Slashing . | . . . . . . . . . . . . . . . . . . . Piercing . | . . . . . . . . . . . . . . . . . . . Highest Corruption 14 | . . . . . 2 2 2 1 2 . . 14 . . . . 6 4 Average Corruption 1 | . . . . . 2 1 1 1 1 . . 5 . . . . 5 2 Corruption Purged 4 | . . . . . . . 2 . 2 . . . . . . . . . Corruption Blocked . | . . . . . . . . . . . . . . . . . . . Effects 72 | . . . . . 8 11 5 2 14 . . 1 . . . . 6 25 Message Errors 17 | . . . . . 3 2 1 . 3 . . 1 . . . . 2 5 Matter Fused 17 | . . . . . 1 4 2 . 4 . . . . . . . 1 5 Heat Flow Errors 9 | . . . . . . 1 1 1 2 . . . . . . . . 4 Energy Discharges 5 | . . . . . 1 2 . . . . . . . . . . 1 1 Data Loss (minor) 11 | . . . . . 2 2 . . 3 . . . . . . . . 4 Data Loss (major) 2 | . . . . . . . . . . . . . . . . . . 2 Misfires 3 | . . . . . 1 . . . 1 . . . . . . . 1 . Alerts 3 | . . . . . . . . . . . . . . . . . 1 2 Weapon Failures 5 | . . . . . . . 1 1 1 . . . . . . . . 2 Overload Shots . | . . . . . . . . . . . . . . . . . . . Overflow Damage 142 | . . . . . . 96 . . . . . . . . . . . 46 Projectiles . | . . . . . . . . . . . . . . . . . . . Explosions 142 | . . . . . . 96 . . . . . . . . . . . 46 Melee . | . . . . . . . . . . . . . . . . . . . Knockbacks . | . . . . . . . . . . . . . . . . . . . Impact . | . . . . . . . . . . . . . . . . . . . Kinetic . | . . . . . . . . . . . . . . . . . . . Secondary . | . . . . . . . . . . . . . . . . . . . Self-Inflicted Damage 203 | . . . . . . 199 . . . . . . . . . . . 4 Shots 2 | . . . . . . 2 . . . . . . . . . . . . Rammed 2 | . . . . . . . . . . . . 1 . . . . . 1 Targets Rammed 3 | . . 1 . . . . . . . . . 1 . . . . . 1 Kicked . | . . . . . . . . . . . . . . . . . . . Crushed 1 | . . 1 . . . . . . . . . . . . . . . . Highest Temperature 441 | . . . . . 82 301 327 210 441 168 12 6 145 199 241 . 91 337 Average Temperature 73 | . . . . . 25 89 182 38 85 55 5 4 45 69 91 . 37 76 Received Heat Transfer 3984 | . . . . . 99 226 369 219 642 18 . 24 228 91 406 . . 1662 Effects 6 | . . . . . . . 1 . 2 . . . . . 3 . . . Shutdowns 1 | . . . . . . . . . 1 . . . . . . . . . Energy Bleed 2 | . . . . . . . 1 . 1 . . . . . . . . . Interference 3 | . . . . . . . . . . . . . . . 3 . . . Siege Activations 12 | . . . . . . . . . . . . . 1 . 3 . 2 6 Total Turns 147 | . . . . . . . . . . . . . 11 . 34 . 17 85 Longest Duration 26 | . . . . . . . . . . . . . 11 . 23 . 10 26 Robots Corrupted . | . . . . . . . . . . . . . . . . . . . Combat Hostiles . | . . . . . . . . . . . . . . . . . . . Parts Fried 3 | . . . . . . 2 . . 1 . . . . . . . . . Impact Corruptions . | . . . . . . . . . . . . . . . . . . . Robots Melted . | . . . . . . . . . . . . . . . . . . . Combat Hostiles . | . . . . . . . . . . . . . . . . . . . Parts Melted 3 | . . . . . . . . . 2 . . . . . 1 . . . Heat Transferred 2064 | . . . . . 222 50 . . 550 . . . . . . . . 1242 Parts Sabotaged 3 | . . . . . . . . . . . . . . . . . . 3 Parts Stolen . | . . . . . . . . . . . . . . . . . . . Parts Stripped . | . . . . . . . . . . . . . . . . . . . Power Chain Reactions . | . . . . . . . . . . . . . . . . . . . Missiles Intercepted . | . . . . . . . . . . . . . . . . . . . Alert | -11 -10 -10 -10 -9 -8 -7 -7 -6 -6 -6 -6 -6 -5 -5 -5 -5 -4 -4 ------- Run | Scr Mat Min Exi Min Mat Fac Sto Fac Ext Cet Arc Hub Fac Upp Upp Zhi Pro Fac Peak Influence 1938 | . . 5 . 70 264 398 460 240 990 861 515 783 879 . . . . 1938 Initial 495 | . . . . . 27 59 110 191 117 495 264 179 349 . . . . 144 Average 482 | . . 3 . 52 104 222 323 161 577 684 462 414 685 . . . . 812 Maximum Alert Level 5 | . . . . . 1 1 2 1 3 3 2 3 3 . . . . 5 Low Security (%) 28 | 100 100 100 . 100 84 44 14 78 10 . . 11 . . . . . 9 Level 1 24 | . . . . . 15 55 57 21 11 . 16 43 8 . . . . 21 Level 2 19 | . . . . . . . 28 . 48 55 83 31 45 . . . . 5 Level 3 22 | . . . . . . . . . 29 44 . 13 45 . . . . 45 Level 4 2 | . . . . . . . . . . . . . . . . . . 9 Level 5 . | . . . . . . . . . . . . . . . . . . 3 High Security 1 | . . . . . . . . . . . . . . . . . . 5 Max Security . | . . . . . . . . . . . . . . . . . . . Squads Dispatched 48 | . . . . . 3 5 3 3 6 . . 3 4 . 1 . . 20 Investigation 9 | . . . . . 1 2 . . 1 . . 1 1 . . . . 3 Extermination 5 | . . . . . . 1 . 1 . . . . . . . . . 3 Reinforcement 16 | . . . . . 2 2 1 2 2 . . 1 2 . . . . 4 Assault 14 | . . . . . . . 2 . 3 . . . 1 . 1 . . 7 Garrison 4 | . . . . . . . . . . . . 1 . . . . . 3 Intercept . | . . . . . . . . . . . . . . . . . . . Searches Triggered . | . . . . . . . . . . . . . . . . . . . Construction Impeded 7 | . . . . . . 1 . 1 1 . . 1 . . . . . 3 Haulers Reinforced 3 | . . . . . . 1 1 . . . . . 1 . . . . . Active Scanning Responses . | . . . . . . . . . . . . . . . . . . . Cargo Convoy Interrupts 1 | . . . . . . . . . . . . . . . . . . 1 Stealth | -11 -10 -10 -10 -9 -8 -7 -7 -6 -6 -6 -6 -6 -5 -5 -5 -5 -4 -4 --------- Run | Scr Mat Min Exi Min Mat Fac Sto Fac Ext Cet Arc Hub Fac Upp Upp Zhi Pro Fac Distress Signals 8 | . . . . . . 1 . . 2 1 . 2 . . . . . 2 Communications Jammed 8 | . . . . . . . . . . . . . 8 . . . . . Distress Signals 8 | . . . . . . . . . . . . . 8 . . . . . Times Spotted 354 | . . 1 . 3 12 25 24 10 55 12 21 20 20 9 17 . 9 116 Peak Tracking Total 17 | . . 1 . 3 2 5 10 4 10 5 1 13 6 4 7 . 4 17 Tactical Retreats 17 | . . . . . . 1 4 1 1 . . . 2 . 1 . . 7 Traps | -11 -10 -10 -10 -9 -8 -7 -7 -6 -6 -6 -6 -6 -5 -5 -5 -5 -4 -4 ------- Run | Scr Mat Min Exi Min Mat Fac Sto Fac Ext Cet Arc Hub Fac Upp Upp Zhi Pro Fac Traps Triggered 8 | . . . . . . 2 . 1 1 . . . 1 . . . . 3 Indirectly . | . . . . . . . . . . . . . . . . . . . Trap Hack Attempts . | . . . . . . . . . . . . . . . . . . . Triggered . | . . . . . . . . . . . . . . . . . . . Disarmed . | . . . . . . . . . . . . . . . . . . . Reprogrammed . | . . . . . . . . . . . . . . . . . . . Reused . | . . . . . . . . . . . . . . . . . . . Traps Extracted . | . . . . . . . . . . . . . . . . . . . Installed . | . . . . . . . . . . . . . . . . . . . Triggered . | . . . . . . . . . . . . . . . . . . . Machines | -11 -10 -10 -10 -9 -8 -7 -7 -6 -6 -6 -6 -6 -5 -5 -5 -5 -4 -4 ---------- Run | Scr Mat Min Exi Min Mat Fac Sto Fac Ext Cet Arc Hub Fac Upp Upp Zhi Pro Fac Machines Disabled 33 | . . . . . . 7 . . 3 . 4 1 2 . 1 . . 15 Max in Single Turn 5 | . . . . . . 5 . . 1 . 1 . 1 . 1 . . 5 Garrison Access 2 | . . . . . . . . . . . . . 1 . . . . 1 Network Hub 1 | . . . . . . . . . . . . 1 . . . . . . Machines Sabotaged 1 | . . . . . . . . . . . . 1 . . . . . . Garrisons Compromised . | . . . . . . . . . . . . . . . . . . . Overloaded Fab Kills . | . . . . . . . . . . . . . . . . . . . Hacking | -11 -10 -10 -10 -9 -8 -7 -7 -6 -6 -6 -6 -6 -5 -5 -5 -5 -4 -4 --------- Run | Scr Mat Min Exi Min Mat Fac Sto Fac Ext Cet Arc Hub Fac Upp Upp Zhi Pro Fac Machines Accessed 40 | . 1 . 1 . 3 5 2 1 7 1 1 2 3 . . 6 1 6 Terminals 23 | . 1 . . . 2 4 2 1 6 1 . 2 . . . . 1 3 Fabricators 2 | . . . . . . 1 . . . . . . . . . . . 1 Repair Stations . | . . . . . . . . . . . . . . . . . . . Recycling Units 5 | . . . . . 1 . . . 1 . . . 2 . . . . 1 Scanalyzers . | . . . . . . . . . . . . . . . . . . . Garrison Access 2 | . . . . . . . . . . . . . 1 . . . . 1 Total Hacks 127 | . 2 . 23 . 10 12 4 7 15 3 4 3 9 . . 19 1 15 Successful 89 | . 2 . 23 . 5 9 2 5 10 . 4 1 2 . . 19 1 6 Failed 38 | . . . . . 5 3 2 2 5 3 . 2 7 . . . . 9 Catastrophic 5 | . . . . . . 1 . . 1 1 . . . . . . . 2 Database Lockouts . | . . . . . . . . . . . . . . . . . . . Manual 31 | . . . . . 5 1 . 2 2 1 . 3 9 . . . . 8 Terminals 57 | . 2 . . . 7 10 4 7 11 3 . 3 . . . . 1 9 Fabricators 5 | . . . . . . 2 . . . . . . . . . . . 3 Repair Stations . | . . . . . . . . . . . . . . . . . . . Recycling Units 17 | . . . . . 3 . . . 4 . . . 8 . . . . 2 Scanalyzers . | . . . . . . . . . . . . . . . . . . . Garrison Access 2 | . . . . . . . . . . . . . 1 . . . . 1 Terminal Hacks 72 | . 2 . 23 . 3 6 2 4 6 . 4 . . . . 19 1 2 Record 39 | . . . 23 . . . . . 3 . 4 . . . . 7 1 1 Part Schematic 5 | . . . . . 1 . . . . . . . . . . 4 . . Robot Analysis 4 | . . . . . . . . . . . . . . . . 4 . . Prototype ID Bank 5 | . . . . . . . . 1 . . . . . . . 4 . . Open Door 3 | . . . . . . . 1 . 2 . . . . . . . . . Branch Access Points 3 | . . . . . 1 1 . 1 . . . . . . . . . . Emergency Access Points 1 | . . . . . . . . 1 . . . . . . . . . . Locate Traps 3 | . . . . . . 1 . 1 1 . . . . . . . . . Dispatch Records 1 | . 1 . . . . . . . . . . . . . . . . . Patrol Status 1 | . . . . . . 1 . . . . . . . . . . . . Registered Components 1 | . . . . . . 1 . . . . . . . . . . . . Zone Layout 6 | . 1 . . . 1 2 1 . . . . . . . . . . 1 Fabricator Hacks 4 | . . . . . . 2 . . . . . . . . . . . 2 Load Schematic 2 | . . . . . . 1 . . . . . . . . . . . 1 Build 2 | . . . . . . 1 . . . . . . . . . . . 1 Repair Station Hacks . | . . . . . . . . . . . . . . . . . . . Recycling Unit Hacks 2 | . . . . . . . . . 2 . . . . . . . . . Report Inventory 1 | . . . . . . . . . 1 . . . . . . . . . Retrieve Components 1 | . . . . . . . . . 1 . . . . . . . . . Scanalyzer . | . . . . . . . . . . . . . . . . . . . Garrison Access Hacks . | . . . . . . . . . . . . . . . . . . . Unauthorized Hacks 11 | . . . . . 2 1 . 1 2 . . 1 2 . . . . 2 Terminals 3 | . . . . . . 1 . 1 . . . 1 . . . . . . Track 2 | . . . . . . 1 . 1 . . . . . . . . . . Sabotage 1 | . . . . . . . . . . . . 1 . . . . . . Fabricators . | . . . . . . . . . . . . . . . . . . . Repair Stations . | . . . . . . . . . . . . . . . . . . . Recycling Units 6 | . . . . . 2 . . . 2 . . . 1 . . . . 1 Reject 2 | . . . . . 1 . . . 1 . . . . . . . . . Mask 4 | . . . . . 1 . . . 1 . . . 1 . . . . 1 Scanalyzers . | . . . . . . . . . . . . . . . . . . . Garrison Access 2 | . . . . . . . . . . . . . 1 . . . . 1 Jam 2 | . . . . . . . . . . . . . 1 . . . . 1 Data Cores Recovered 2 | . . . . . . . 1 . 1 . . . . . . . . . Used . | . . . . . . . . . . . . . . . . . . . Hacking Detections 22 | . 1 . . . 3 4 2 . 4 1 . 1 2 . . . . 4 Full Trace Events 4 | . . . . . 1 1 . . 1 . . . . . . . . 1 Feedback Events . | . . . . . . . . . . . . . . . . . . . Feedback Blocked . | . . . . . . . . . . . . . . . . . . . Robot Schematics Acquired . | . . . . . . . . . . . . . . . . . . . Robots Built . | . . . . . . . . . . . . . . . . . . . Authchips . | . . . . . . . . . . . . . . . . . . . Time . | . . . . . . . . . . . . . . . . . . . Total Robot Build Rating . | . . . . . . . . . . . . . . . . . . . Part Schematics Acquired 5 | . . . . . 1 . . . . . . . . . . 4 . . Parts Built 2 | . . . . . . 1 . . . . . . . . . . . 1 Authchips . | . . . . . . . . . . . . . . . . . . . Time 102 | . . . . . . 51 . . . . . . . . . . . 51 Total Part Build Rating 2 | . . . . . . 1 . . . . . . . . . . . 1 Parts Repaired . | . . . . . . . . . . . . . . . . . . . Time . | . . . . . . . . . . . . . . . . . . . Parts Recycled . | . . . . . . . . . . . . . . . . . . . Recycled Matter . | . . . . . . . . . . . . . . . . . . . Retrieved Matter . | . . . . . . . . . . . . . . . . . . . Retrieved Components 9 | . . . . . . . . . 9 . . . . . . . . . Parts Scanalyzed . | . . . . . . . . . . . . . . . . . . . Part Schematics Acquired . | . . . . . . . . . . . . . . . . . . . Parts Damaged . | . . . . . . . . . . . . . . . . . . . Bothacking | -11 -10 -10 -10 -9 -8 -7 -7 -6 -6 -6 -6 -6 -5 -5 -5 -5 -4 -4 ------------ Run | Scr Mat Min Exi Min Mat Fac Sto Fac Ext Cet Arc Hub Fac Upp Upp Zhi Pro Fac Used RIF Installer . | . . . . . . . . . . . . . . . . . . . Robots Hacked . | . . . . . . . . . . . . . . . . . . . Non-combat . | . . . . . . . . . . . . . . . . . . . Combat . | . . . . . . . . . . . . . . . . . . . Robot Hacks Applied . | . . . . . . . . . . . . . . . . . . . Relay Couplers Released 4 | . . . . . . 4 . . . . . . . . . . . . Programmers 4 | . . . . . . 4 . . . . . . . . . . . . Fabnet Peak Effective % . | . . . . . . . . . . . . . . . . . . . Robots Rewired 14 | . . . . . . . . . 13 . . . . . 1 . . . Allies Hacked . | . . . . . . . . . . . . . . . . . . . Hacks Repelled . | . . . . . . . . . . . . . . . . . . . Allies | -11 -10 -10 -10 -9 -8 -7 -7 -6 -6 -6 -6 -6 -5 -5 -5 -5 -4 -4 -------- Run | Scr Mat Min Exi Min Mat Fac Sto Fac Ext Cet Arc Hub Fac Upp Upp Zhi Pro Fac Total Allies 28 | . . . . . . . 2 . 20 5 . . . . 1 . . . Largest Group 10 | . . . . . . . 2 . 10 7 7 6 . . 1 . . . Highest-Rated Group 647 | . . . . . . . 62 . 287 647 647 511 . . 29 . . . Highest-Rated Ally 159 | . . . . . . . 31 . 159 152 136 96 . . 29 . . . Total Orders . | . . . . . . . . . . . . . . . . . . . Ally Attacks 276 | . . . . . . . 11 . 139 65 17 35 . . 9 . . . Total Damage 6996 | . . . . . . . 206 . 2854 1603 576 1665 . . 92 . . . Kills 41 | . . . . . . . 1 . 19 7 3 11 . . . . . . Allies Corrupted 2 | . . . . . . . . . . . . 2 . . . . . . Allies Melted 2 | . . . . . . . 1 . 1 . . . . . . . . . Intel | -11 -10 -10 -10 -9 -8 -7 -7 -6 -6 -6 -6 -6 -5 -5 -5 -5 -4 -4 ------- Run | Scr Mat Min Exi Min Mat Fac Sto Fac Ext Cet Arc Hub Fac Upp Upp Zhi Pro Fac Robot Analysis Total 4 | . . . . . . . . . . . . . . . . 4 . . Derelict Logs Recovered 3 | . . 1 . . . . . . . . . . . 1 . . 1 . Drone Launches . | . . . . . . . . . . . . . . . . . . . Drone Recoveries . | . . . . . . . . . . . . . . . . . . . Exploration | -11 -10 -10 -10 -9 -8 -7 -7 -6 -6 -6 -6 -6 -5 -5 -5 -5 -4 -4 ------------- Run | Scr Mat Min Exi Min Mat Fac Sto Fac Ext Cet Arc Hub Fac Upp Upp Zhi Pro Fac Turns Passed 11587 | 61 37 265 353 110 576 1606 570 679 1312 433 246 260 811 663 519 299 331 2456 Spaces Moved 5215 | 39 24 163 221 51 259 598 169 349 474 233 109 130 411 382 259 161 174 1009 Core 122 | 9 . . . . . . . . . . . . . . . . . 113 Treads 4900 | 30 24 163 221 51 259 598 169 349 339 233 109 130 411 382 259 161 174 838 Legs . | . . . . . . . . . . . . . . . . . . . Wheels 193 | . . . . . . . . . 135 . . . . . . . . 58 Hover . | . . . . . . . . . . . . . . . . . . . Flight . | . . . . . . . . . . . . . . . . . . . Fastest Speed 50 | 50 160 160 160 160 160 160 240 160 95 160 160 160 160 160 160 160 160 50 Average Speed 171 | 134 160 160 160 160 160 219 240 162 147 160 160 160 160 160 160 160 160 177 Slowest Speed 400 | 160 160 160 160 160 160 240 240 240 320 160 160 240 160 160 160 160 160 400 Overloaded Moves . | . . . . . . . . . . . . . . . . . . . Propulsion Burnouts . | . . . . . . . . . . . . . . . . . . . Robots Hopped . | . . . . . . . . . . . . . . . . . . . Cave-ins Triggered . | . . . . . . . . . . . . . . . . . . . Teleports 1 | . . . . . . . . . . . . . . . . . . 1 Exploration Rate (%) 37 | 4 5 43 63 26 22 17 36 11 75 60 81 17 12 62 46 62 38 31 Regions Visited 18 Branch Regions 12 Pre-discovered Areas 5 | . . 1 1 . . . . . . . . . . . . 3 . . Known Exits Taken 6 | . . 1 . . . 1 . 1 . . . 1 1 . . . 1 . Unknown Exits Taken 12 | 1 1 . 1 1 1 . 1 . 1 1 1 . . 1 1 1 . . Scrap Searched 6 | . . 2 . 1 . . . . . . . . . 1 2 . . . Spaces Dug 9 | . . . . . . 4 . . . . . . . . . . . 5 Terrain Destroyed 351 | . . . . . . 47 . 1 6 4 . 1 20 16 12 . 25 219 Melee 9 | . . . . . . 4 . . . . . . . . . . . 5 Projectile 154 | . . . . . . . . . 2 4 . 1 20 16 12 . 25 74 AOE 179 | . . . . . . 43 . . . . . . . . . . . 136 Terrain Rammed . | . . . . . . . . . . . . . . . . . . . Walls Destroyed . | . . . . . . . . . . . . . . . . . . . Machines Disabled . | . . . . . . . . . . . . . . . . . . . Actions | -11 -10 -10 -10 -9 -8 -7 -7 -6 -6 -6 -6 -6 -5 -5 -5 -5 -4 -4 --------- Run | Scr Mat Min Exi Min Mat Fac Sto Fac Ext Cet Arc Hub Fac Upp Upp Zhi Pro Fac Total 6692 | 45 23 166 221 62 347 771 254 405 815 262 139 160 496 406 323 202 203 1392 Wait 260 | . . . . 1 18 40 20 . 38 . . . 4 6 18 28 10 77 Move 5197 | 38 23 162 220 50 258 597 168 348 473 232 108 129 410 381 258 160 173 1009 Hop . | . . . . . . . . . . . . . . . . . . . Pick Up 100 | 1 . 2 1 1 7 9 9 6 18 2 3 3 11 1 . 2 . 24 Fast Attach 94 | 6 . 1 . . 7 18 3 3 18 2 . 2 3 . 1 4 1 25 Attach 72 | . . . . . 1 6 2 5 11 3 1 1 7 . 1 1 . 33 Detach 53 | . . . . . 2 12 1 3 3 4 1 . 6 . 1 1 1 18 Swap 111 | . . . . . 5 12 7 11 15 3 4 5 8 2 4 2 4 29 Drop 134 | . . . . . 12 23 11 6 20 2 4 9 11 1 1 4 1 29 Fire 521 | . . . . 10 37 50 33 23 99 11 18 10 36 15 24 . 13 142 Melee 31 | . . . . . . 4 . . 19 3 . . . . . . . 5 Ram 1 | . . . . . . . . . . . . . . . . . . 1 Kick . | . . . . . . . . . . . . . . . . . . . Crush 2 | . . 1 . . . . . . . . . 1 . . . . . . Escape Stasis . | . . . . . . . . . . . . . . . . . . . Rewire 116 | . . . . . . . . . 101 . . . . . 15 . . . Trap . | . . . . . . . . . . . . . . . . . . . Miscellaneous . | . . . . . . . . . . . . . . . . . . . Route ------- -11/Scrapyard -10/Materials -10/Mines -10/Exiles -9/Mines -8/Materials -7/Factory (discovered 3 exits: *Sto / Low x2) -7/Storage (discovered 2 exits: *Fac / [Rec]) -6/Factory (discovered 5 exits: *Fac / Low x2 / *Ext x2) -6/Extension (discovered 2 exits: *Fac / *Cet) -6/Cetus -6/Archives (discovered 3 exits: *Fac / *Hub x2) -6/Hub_04(d) -5/Factory (discovered 2 exits: *Fac / *Upp) -5/Upper Caves -5/Upper Caves -5/Zhirov -4/Proximity Caves -4/Factory (discovered 1 exit: [*Res]) History --------- Turn | Location | Event 12 | -11/Scrapyard | Discovered new exit (range 13) 62 | -11/Scrapyard | Entered Materials 62 | -10/Materials | Discovered new exit (range 8) 99 | -10/Materials | Entered Mines 100 | -10/Mines | Assembled infested the area 100 | -10/Mines | Met a Derelict bent on vengeance 138 | -10/Mines | Learned location of Storage (-7) 213 | -10/Mines | Identified exit to Exiles 316 | -10/Mines | Build established: Mutant 357 | -10/Mines | Deemed a non-threat by the Exiles lab entrance 364 | -10/Mines | Entered Exiles 404 | -10/Exiles | Met 8R-AWN 432 | -10/Exiles | Met EX-HEX 492 | -10/Exiles | Met EX-DEC 500 | -10/Exiles | Learned location of Zion (-7) 564 | -10/Exiles | Visited The Gauntlet 701 | -10/Exiles | Discovered new exit (range 12) 717 | -10/Exiles | Entered Mines 808 | -9/Mines | Discovered new exit (range 14) 827 | -9/Mines | Entered Materials 827 | -8/Materials | Evolved 4 slots: Utility x2, Weapon x2 1340 | -8/Materials | Discovered new exit (range 3) 1403 | -8/Materials | Entered Factory 1403 | -7/Factory | Evolved 2 slots: Utility x2 1437 | -7/Factory | Identified exit to Storage 1437 | -7/Factory | Identified exit to Lower Caves 1462 | -7/Factory | Fabricated Huge Storage Unit (x1) 1774 | -7/Factory | Build established: Scavenger-Tank 2475 | -7/Factory | Build established: Gunner 3009 | -7/Factory | Entered Storage 3259 | -7/Storage | Discovered new exit (range 16) 3439 | -7/Storage | Discovered new exit (range 15) 3473 | -7/Storage | Met a pair of Derelict thieves 3536 | -7/Storage | Build established: Scavenger-Gunner 3548 | -7/Storage | Destroyed 8 combat bots 3558 | -7/Storage | Found Prototype Launcher 3579 | -7/Storage | Entered Factory 3579 | -6/Factory | Evolved 2 slots: Propulsion x2 3719 | -6/Factory | Discovered new exit (range 13) 3753 | -6/Factory | Identified exit to Factory 3784 | -6/Factory | Identified exit to Lower Caves 3784 | -6/Factory | Identified exit to Extension 4258 | -6/Factory | Entered Extension 4396 | -6/Extension | Rescued a captive Derelict 4396 | -6/Extension | Rescued a captive Derelict 4501 | -6/Extension | Rescued a captive Derelict 4504 | -6/Extension | Rescued a captive Derelict 4608 | -6/Extension | First assault squad dispatched 4708 | -6/Extension | Disrupted transfer network 4794 | -6/Extension | Rescued a captive Derelict 4794 | -6/Extension | Rescued a captive Derelict 4802 | -6/Extension | Spotted B-75 Beast 4873 | -6/Extension | Destroyed B-75 Beast 4881 | -6/Extension | Spotted B-75 Beast 4922 | -6/Extension | Destroyed B-75 Beast 4952 | -6/Extension | Lost 12 parts (1p5n2u4w) 5006 | -6/Extension | Lost 4 parts (1n1u2w) 5271 | -6/Extension | Rescued A7 5399 | -6/Extension | Found Prototype Protection 5399 | -6/Extension | Identified Med. Regenerative Plating 5553 | -6/Extension | Discovered exit to Factory (range 10) 5554 | -6/Extension | Discovered new exit (range 6) 5566 | -6/Extension | Build established: Scavenger-Tank 5570 | -6/Extension | Entered Cetus 5570 | -6/Cetus | Accompanied by 5 allies (A7) 5575 | -6/Cetus | Acquired a Cetus Manufacturing Module code from A7 5592 | -6/Cetus | Spotted Cetus Guard 5592 | -6/Cetus | Spotted Cetus Guard 5597 | -6/Cetus | Destroyed Cetus Guard 5598 | -6/Cetus | Spotted Cetus Guard 5600 | -6/Cetus | Allies destroyed Cetus Guard 5600 | -6/Cetus | Spotted Cetus Guard 5607 | -6/Cetus | Destroyed Cetus Guard 5617 | -6/Cetus | Allies destroyed Cetus Guard 5695 | -6/Cetus | Started Cetus Manufacturing Module 5720 | -6/Cetus | Manufactured an Enhanced Grunt 5745 | -6/Cetus | Manufactured an Enhanced Grunt 5770 | -6/Cetus | Manufactured an Enhanced Grunt 5795 | -6/Cetus | Manufactured an Enhanced Grunt 5819 | -6/Cetus | Discovered new exit (range 15) 5820 | -6/Cetus | Manufactured an Enhanced Grunt 6003 | -6/Cetus | Entered Archives 6003 | -6/Archives | Accompanied by 7 allies (A7) 6061 | -6/Archives | Discovered new exit (range 15) 6075 | -6/Archives | Unable to access archive contents 6091 | -6/Archives | Unable to access archive contents 6094 | -6/Archives | Discovered exit to Factory (range 16) 6107 | -6/Archives | Unable to access archive contents 6151 | -6/Archives | Discovered new exit (range 15) 6249 | -6/Archives | Entered Hub_04(d) 6249 | -6/Hub_04(d) | Accompanied by 6 allies 6391 | -6/Hub_04(d) | Discovered exit to Factory (range 16) 6417 | -6/Hub_04(d) | Garrison activated, responded to threat 6475 | -6/Hub_04(d) | Network Hub disabled 6481 | -6/Hub_04(d) | Spotted Lightning 6481 | -6/Hub_04(d) | Spotted Lightning 6481 | -6/Hub_04(d) | Spotted Lightning 6486 | -6/Hub_04(d) | Spotted Lightning 6486 | -6/Hub_04(d) | Spotted Lightning 6500 | -6/Hub_04(d) | Spotted Lightning 6509 | -6/Hub_04(d) | System corruption reached 10% 6509 | -6/Hub_04(d) | Entered Factory 6509 | -5/Factory | Evolved 2 slots: Utility x2 6809 | -5/Factory | First assault squad dispatched 6989 | -5/Factory | Destroyed 7 combat bots 7101 | -5/Factory | Discovered new exit (range 5) 7130 | -5/Factory | Discovered new exit (range 13) 7208 | -5/Factory | Identified exit to Factory 7265 | -5/Factory | Identified exit to Upper Caves 7320 | -5/Factory | Entered Upper Caves 7538 | -5/Upper Caves | Learned Factory stockpile data 7573 | -5/Upper Caves | Build established: Scavenger-Gunner 7681 | -5/Upper Caves | Attracted the attention of an 0b10 checkpoint 7976 | -5/Upper Caves | Discovered new exit (range 5) 7983 | -5/Upper Caves | Entered another Upper Caves area 7984 | -5/Upper Caves | Encountered a Warlord checkpoint 8095 | -5/Upper Caves | Attracted the attention of an 0b10 outpost 8168 | -5/Upper Caves | Destroyed 11 combat bots 8477 | -5/Upper Caves | Attracted the attention of an 0b10 checkpoint 8481 | -5/Upper Caves | Discovered new exit (range 10) 8502 | -5/Upper Caves | Entered Zhirov 8502 | -5/Zhirov | Discovered new exit (range 3) 8531 | -5/Zhirov | Met Zhirov 8570 | -5/Zhirov | Learned location of Quarantine (-2) 8570 | -5/Zhirov | Learned location of Testing (-3) 8570 | -5/Zhirov | Learned location of Command (-1) 8602 | -5/Zhirov | Zhirov requested help retrieving the SGEMP Prototype 8642 | -5/Zhirov | Found Alien Artifact 8642 | -5/Zhirov | Identified Integrated Dissipator 8642 | -5/Zhirov | Installed Integrated Dissipator, increased core heat dissipation (+20) 8667 | -5/Zhirov | Found Alien Artifact 8801 | -5/Zhirov | Entered Proximity Caves 9025 | -4/Proximity Caves | Learned 12 Research zone layouts 9121 | -4/Proximity Caves | Discovered exit to Factory (range 6) 9129 | -4/Proximity Caves | Identified Rocket Array 9132 | -4/Proximity Caves | Entered Factory 9132 | -4/Factory | Evolved 2 slots: Power x1, Weapon x1 9711 | -4/Factory | Fabricated Huge Storage Unit? 9882 | -4/Factory | Garrison activated, responded to threat 9972 | -4/Factory | Destroyed 14 combat bots 9977 | -4/Factory | Lost 12 parts (2p3n3u4w) 10170 | -4/Factory | Lost 5 parts (1p1n2u1w) 10632 | -4/Factory | First assault squad dispatched 10712 | -4/Factory | Lost 3 parts (1p2n) 11134 | -4/Factory | Spotted B-86 Titan 11304 | -4/Factory | Destroyed 11 combat bots 11377 | -4/Factory | Garrison activated, responded to threat 11464 | -4/Factory | High security lockdown imminent 11502 | -4/Factory | Cargo convoy interrupted 11522 | -4/Factory | Spotted Executioner 11528 | -4/Factory | Core integrity fell below 50% 11528 | -4/Factory | Released all parts (6) 11529 | -4/Factory | Identified Transdimensional Reconstructor 11529 | -4/Factory | Warped through subspace 11544 | -4/Factory | High security lockdown engaged 11558 | -4/Factory | Lost 17 parts (2p3n5u7w) 11577 | -4/Factory | Core integrity fell below 20% 11587 | -4/Factory | Discovered new exit (range 16) 11588 | -4/Factory | Destroyed by G-67 Veteran with Field Laser Last Messages --------------- 11529_ Identified Transdimensional Reconstructor. 11529_ Warped through subspace. 11532_ System corrupted: Component data lost. 11544_ ALERT: Lockdown in effect, collecting threat data. 11547_ Dropped Micro-nuke Launcher. 11548_ Dropped Power Sword. 11549_ Acquired Imp. Heavy Treads. 11554_ O-24 Administrator: "IFF HANDSHAKE FAILED. SECURING TERMINAL." 11564_ ALERT: Assault forces dispatched. 11576_ Triggered Tesla Bomb Trap. 11576_ A bubble of electromagnetic force engulfs the area. 11576_ Tesla Bomb Trap short circuited. 11576_ A bubble of electromagnetic force engulfs the area. 11581_ C-30 ARC bursts open, deploying its payload. 11581_ G-73 Enforcer unfolds itself. 11581_ G-67 Veteran unfolds itself. 11581_ I-47 Archangel unfolds itself. 11587_ EXIT=FOUND 11588_ Penetrated by Slug. [Achievement: Punisher] Map ----- +----------------------------------------------------+ | | | | | | | | | | | ?????????????????????????????????????????????????? | | ?????????????????????????????????????????????????? | | ?????????????????????????????????????????????????? | | ?????????????????????????????????????????????????? | | ?????????????????????????????????????????????????? | | ?????????????????????????????????????????????????? | | ?????????????????????????????????????????????????? | | ?????????????????????????????????????????????????? | | ?????????????????????????????????????????????????? | | ?????????????????????????????????????????????????? | | ?????????????????????????????????????????????????? | | ?????????????????????????????????????????????????? | | ?????????????????????????????????????????????????? | | ?????????????????????????????????? +?????????????? | | ????????????????????????????????? ??? ??????????? | | ??????????????####+#############/### ??????????? | | ??????????????# ggg ?????????? | | ??????????????# g ?????????? | | ??????????????# Y